bitfinex/quotes_SOLUSD_20250722
["timestamp","ask_amount","ask_price","bid_price","bid_amount"]
[1753215993564,10.37073376,200.31,200.3,10.0]
[1753215993763,10.37073376,200.31,200.29,0.03]
[1753215993962,5.37847177,200.3,200.29,0.03]
[1753215995260,0.14216157,200.3,200.29,0.69]
[1753215996261,12.53868934,200.35,200.31,10.0]
[1753215996262,0.14216157,200.32,200.31,10.0]
[1753215996471,0.14216157,200.32,200.31,10.66]
[1753215997153,0.14216157,200.32,200.31,10.0]
[1753215997371,5.37847177,200.32,200.29,10.69]
[1753215997585,5.2363102,200.31,200.29,10.69]
[1753215998254,5.37847177,200.32,200.3,0.66]
[1753215998566,0.14216157,200.32,200.31,10.0]
[1753215998773,0.14216157,200.32,200.31,10.66]
[1753215999368,5.13417434,200.32,200.31,10.66]
[1753216000277,5.13417434,200.32,200.31,0.66]
[1753216000565,5.13417434,200.32,200.31,10.66]
[1753216000774,0.14216157,200.32,200.31,10.66]
[1753216002368,5.13417434,200.32,200.31,10.66]
[1753216002575,10.37048454,200.32,200.31,10.0]
[1753216003270,10.37048454,200.32,200.31,10.66]
[1753216005658,5.13417434,200.32,200.31,10.66]
[1753216007666,16.92684554,200.31,200.29,0.03]
[1753216007979,22.16315574,200.3,200.29,0.03]
[1753216008281,22.80315574,200.3,200.29,0.03]
[1753216009883,27.79566697,200.3,200.29,0.03]
[1753216010257,27.15566697,200.3,200.29,0.03]
[1753216010463,10.370983,200.3,200.29,0.03]
[1753216012701,5.2363102,200.3,200.29,0.03]
[1753216012871,5.37847177,200.3,200.29,0.03]
[1753216013899,10.370983,200.3,200.29,0.03]
[1753216015199,16.2472932,200.3,200.29,0.03]
[1753216016009,59.03197717,200.3,200.29,1e-08]
[1753216016375,16.92684554,200.29,200.25,0.03]
[1753216016580,16.92684554,200.29,200.26,0.71]
[1753216016794,5.37847177,200.27,200.25,0.03]
[1753216016998,5.2363102,200.26,200.25,0.03]
[1753216018888,5.2363102,200.26,200.25,0.74]
[1753216019724,5.13558579,200.27,200.25,0.74]
[1753216019903,5.2363102,200.26,200.25,0.74]
[1753216020101,5.2363102,200.26,200.25,0.03]
[1753216020706,5.2363102,200.26,200.25,0.74]
[1753216021510,5.13544983,200.27,200.25,0.74]
[1753216021812,5.13544983,200.27,200.26,10.0]
[1753216021813,0.14216157,200.27,200.26,10.0]
[1753216022015,0.14216157,200.27,200.26,10.71]
[1753216023892,0.06,200.32,200.26,10.71]
[1753216023893,5.2363102,200.3,200.26,10.71]
[1753216024114,26.7763102,200.31,200.28,10.0]
[1753216024298,5.2363102,200.31,200.28,10.0]
[1753216024500,22.02099417,200.31,200.29,0.71]
[1753216024699,0.14216157,200.3,200.29,0.71]
[1753216026918,5.37847177,200.3,200.29,0.71]
[1753216029117,0.14216157,200.3,200.29,0.71]
[1753216030823,10.28837826,200.32,200.29,0.71]
[1753216031010,5.2363102,200.31,200.28,10.0]
[1753216031199,26.7763102,200.31,200.28,10.0]
[1753216031397,0.14216157,200.28,200.26,10.71]
[1753216031832,0.14216157,200.28,200.26,10.0]
[1753216032131,0.06,200.32,200.27,0.71]
[1753216032309,21.54,200.31,200.29,10.0]
[1753216032505,21.54,200.31,200.3,0.71]
[1753216032711,21.68216157,200.31,200.3,0.71]
[1753216032918,0.14216157,200.31,200.3,0.71]
[1753216033118,0.14216157,200.3,200.29,10.0]
[1753216033420,22.80315574,200.3,200.25,0.03]
[1753216033635,16.92684554,200.28,200.27,10.0]
[1753216033824,43.86315574,200.28,200.27,10.0]
[1753216034013,43.86315574,200.28,200.25,0.03]
[1753216034196,5.37847177,200.27,200.26,10.0]
[1753216034394,0.14216157,200.27,200.26,10.0]
[1753216034721,0.14216157,200.27,200.26,10.71]
[1753216039531,10.37173087,200.27,200.26,10.0]
[1753216040206,0.14216157,200.26,200.25,0.03]
[1753216040405,5.37847177,200.26,200.25,10.03]
[1753216040826,5.37847177,200.26,200.25,0.03]
[1753216041723,10.3719802,200.26,200.25,0.03]
[1753216043804,10.3719802,200.26,200.25,10.03]
[1753216044021,5.13567,200.26,200.25,10.03]
[1753216044325,31.9919802,200.26,200.25,10.03]
[1753216045114,10.3719802,200.26,200.25,10.03]
[1753216045317,31.9919802,200.26,200.25,10.03]
[1753216046938,26.75567,200.26,200.25,10.03]
[1753216047111,31.9919802,200.26,200.25,10.03]
[1753216049634,31.9919802,200.26,200.25,0.03]
[1753216049832,49.41666417,200.26,200.25,0.03]
[1753216050726,48.77666417,200.26,200.25,0.69]
[1753216050929,48.73666417,200.26,200.25,0.69]
[1753216051132,48.73666417,200.26,200.25,0.03]
[1753216053530,22.16315574,200.27,200.25,10.03]
[1753216053844,5.37847177,200.26,200.25,10.03]
[1753216054521,5.37847177,200.26,200.25,10.69]
[1753216054724,0.14216157,200.26,200.25,10.69]
[1753216055046,0.06,200.29,200.27,10.0]
[1753216055422,21.74216157,200.29,200.28,0.66]
[1753216056848,0.20216157,200.29,200.27,10.0]
[1753216057157,0.20216157,200.29,200.27,10.66]
[1753216059142,0.20216157,200.29,200.28,0.66]
[1753216059934,0.20216157,200.29,200.27,10.0]
[1753216060143,0.20216157,200.29,200.27,10.66]
[1753216060851,0.06,200.29,200.28,0.66]
[1753216061030,0.06,200.29,200.27,10.66]
[1753216063254,0.06,200.29,200.28,0.66]
[1753216063757,0.06,200.29,200.27,10.0]
[1753216064054,5.2963102,200.29,200.27,10.0]
[1753216064347,10.28912717,200.29,200.27,10.0]
[1753216064536,5.05281697,200.29,200.27,10.0]
[1753216064735,0.06,200.29,200.27,10.0]
[1753216065232,38.46684554,200.28,200.27,10.0]
[1753216065438,16.92684554,200.27,200.25,0.03]
[1753216065649,22.16315574,200.26,200.25,0.03]
[1753216066054,16.92684554,200.26,200.25,0.03]
[1753216067539,21.92035397,200.26,200.25,0.03]
[1753216069258,27.79666417,200.26,200.25,0.03]
[1753216069928,22.56035397,200.26,200.25,0.03]
[1753216070137,27.79666417,200.26,200.25,0.03]
[1753216070933,21.92035397,200.26,200.25,0.03]
[1753216071247,27.15666417,200.26,200.25,0.03]
[1753216071556,48.69666417,200.26,200.25,0.03]
[1753216071935,43.46035397,200.26,200.25,0.03]
[1753216072130,48.69666417,200.26,200.25,0.03]
[1753216072555,22.16315574,200.26,200.25,0.03]
[1753216072776,21.54,200.26,200.25,0.69]
[1753216073143,21.68216157,200.26,200.25,0.69]
[1753216073446,21.54,200.27,200.26,10.0]
[1753216073634,21.68216157,200.27,200.26,10.0]
[1753216075763,21.68216157,200.27,200.26,10.66]
[1753216075972,0.06,200.29,200.26,10.66]
[1753216076139,5.2363102,200.28,200.26,10.0]
[1753216076339,0.14216157,200.27,200.26,10.66]
[1753216076540,0.14216157,200.27,200.26,10.0]
[1753216076862,0.06,200.29,200.28,10.0]
[1753216077066,0.06,200.29,200.28,15.8963102]
[1753216077267,5.05170988,200.34,200.28,15.8963102]
[1753216077268,0.06,200.34,200.31,10.0]
[1753216077438,0.06,200.34,200.31,15.2363102]
[1753216077762,0.06,200.34,200.31,15.8963102]
[1753216078668,0.06,200.34,200.31,10.66]
[1753216080556,0.06,200.34,200.31,15.8963102]
[1753216081354,0.06,200.34,200.31,29.03807219]
[1753216081963,0.06,200.34,200.33,36.0]
[1753216082197,0.06,200.35,200.33,41.73548655]
[1753216082471,0.06,200.35,200.34,27.4363102]
[1753216082976,0.06,200.35,200.34,32.42782462]
[1753216086259,0.06,200.38,200.34,32.42782462]
[1753216086260,0.06,200.38,200.37,36.0]
[1753216086455,0.06,200.38,200.37,41.2363102]
[1753216086675,0.06,200.38,200.37,41.8963102]
[1753216088384,0.06,200.38,200.37,46.88707728]
[1753216088684,0.06,200.39,200.38,8.0446]
[1753216088988,0.06,200.4,200.39,16.78468397]
[1753216089170,0.06,200.44,200.39,38.41633126]
[1753216089480,0.06,200.44,200.4,27.91730437]
[1753216090258,0.06,200.44,200.4,32.90732433]
[1753216091295,0.06,200.44,200.4,10.88633016]
[1753216092158,0.06,200.44,200.4,5.8963102]
[1753216092793,0.06,200.44,200.4,34.7963102]
[1753216093461,0.06,200.44,200.4,56.3163102]
[1753216094178,0.06,200.44,200.4,61.30633016]
[1753216097681,0.06,200.44,200.4,56.3163102]
[1753216097880,0.06,200.44,200.4,61.30633016]
[1753216099797,0.77,200.44,200.4,50.42]
[1753216099974,0.06,200.44,200.4,56.3463102]
[1753216100498,0.06,200.44,200.4,27.4463102]
[1753216102084,0.06,200.44,200.4,32.43633016]
[1753216102283,0.06,200.44,200.4,27.4463102]
[1753216103489,0.06,200.44,200.4,38.17164235]
[1753216104497,0.06,200.44,200.4,66.57264036]
[1753216105192,0.06,200.44,200.4,61.33633016]
[1753216105512,0.06,200.44,200.4,56.10001996]
[1753216105680,0.06,200.44,200.4,61.33633016]
[1753216105880,0.06,200.44,200.4,56.3463102]
[1753216106513,0.06,200.44,200.4,61.33633016]
[1753216106678,0.85216157,200.43,200.39,10.0]
[1753216106877,0.14216157,200.4,200.39,10.0]
[1753216107094,0.14216157,200.4,200.39,31.52]
[1753216107999,0.06,200.41,200.39,63.4463102]
[1753216108211,0.06,200.41,200.4,5.2363102]
[1753216109407,0.06,200.41,200.4,5.9263102]
[1753216112721,0.06,200.41,200.39,62.7563102]
[1753216113000,0.14216157,200.4,200.39,10.0]
[1753216113201,0.14216157,200.4,200.39,31.5]
[1753216114112,0.85216157,200.4,200.39,31.5]
[1753216114280,6.08847177,200.4,200.39,31.5]
[1753216114480,11.07849173,200.4,200.39,10.0]
[1753216114919,5.84218153,200.4,200.39,10.0]
[1753216115709,11.07849173,200.4,200.37,10.0]
[1753216115907,11.07849173,200.4,200.28,7.7658]
[1753216115908,16.92684554,200.37,200.28,7.7658]
[1753216116123,0.14216157,200.33,200.3,21.5]
[1753216117001,0.85216157,200.33,200.3,21.5]
[1753216117397,0.14216157,200.33,200.3,21.5]
[1753216117695,5.133927,200.33,200.3,21.5]
[1753216117895,5.843927,200.33,200.3,21.5]
[1753216118896,11.0802372,200.33,200.3,21.5]
[1753216119097,4.99054316,200.38,200.32,5.2363102]
[1753216119300,4.99054316,200.38,200.33,27.4463102]
[1753216119510,4.99054316,200.38,200.34,0.69]
[1753216119912,0.14216157,200.37,200.34,0.69]
[1753216120227,0.14216157,200.37,200.33,26.7563102]
[1753216120536,0.14216157,200.37,200.33,22.21]
[1753216120828,0.14216157,200.37,200.33,27.4463102]
[1753216121130,10.28629374,200.41,200.35,5.2363102]
[1753216122306,5.13228604,200.4,200.35,5.2363102]
[1753216122625,5.13228604,200.4,200.36,0.69]
[1753216123200,5.13228604,200.4,200.35,5.2363102]
[1753216123405,5.84228604,200.4,200.35,5.2363102]
[1753216123856,5.13228604,200.4,200.36,5.9263102]
[1753216124447,5.13228604,200.4,200.36,0.69]
[1753216125063,5.13228604,200.4,200.34,5.2363102]
[1753216125351,0.20216157,200.41,200.35,5.9263102]
[1753216126251,5.19201528,200.41,200.35,5.9263102]
[1753216126419,5.19201528,200.41,200.36,0.69]
[1753216126621,5.19201528,200.41,200.37,0.69]
[1753216128149,0.06,200.41,200.39,5.2363102]
[1753216128350,0.06,200.41,200.4,5.2363102]
[1753216128519,0.06,200.41,200.4,5.9563102]
[1753216130742,0.06,200.41,200.4,0.72]
[1753216133237,0.06,200.41,200.4,5.9563102]
[1753216142435,0.06,200.41,200.4,10.94633016]
[1753216144557,0.06,200.41,200.4,44.28834235]
[1753216144742,0.06,200.41,200.4,18.28834235]
[1753216151369,0.06,200.41,200.4,39.78834235]
[1753216151861,0.06,200.41,200.4,68.68834235]
[1753216155667,0.06,200.41,200.4,63.45203215]
[1753216156379,0.06,200.41,200.4,61.84533215]
[1753216158165,0.06,200.41,200.4,56.60902195]
[1753216158380,0.06,200.41,200.4,61.84533215]
[1753216158871,0.06,200.41,200.4,67.08164235]
[1753216159856,0.06,200.41,200.4,61.84533215]
[1753216160474,0.06,200.41,200.4,56.60902195]
[1753216160688,0.06,200.41,200.4,61.12533215]
[1753216161547,0.06,200.41,200.4,61.78533215]
[1753216161749,0.06,200.41,200.4,67.02164235]
[1753216162581,0.06,200.41,200.4,61.78533215]
[1753216163348,0.06,200.41,200.4,67.02164235]
[1753216165049,0.06,200.44,200.43,26.0]
[1753216165371,0.06,200.44,200.43,53.2152375]
[1753216165549,0.06,200.44,200.43,53.8752375]
[1753216167461,0.06,200.44,200.43,58.86451056]
[1753216169563,0.06,200.44,200.43,87.76451056]
[1753216172482,0.06,200.44,200.43,101.93451056]
[1753216175085,0.06,200.44,200.43,101.27451056]
[1753216177276,0.06,200.44,200.43,96.03820036]
[1753216177464,0.06,200.44,200.43,101.27451056]
[1753216181090,0.74,200.44,200.43,100.77558326]
[1753216181380,0.06,200.44,200.43,100.77558326]
[1753216182479,0.06,200.44,200.43,90.53]
[1753216182679,6.11847177,200.44,200.43,14.17]
[1753216182984,6.11847177,200.44,200.43,21.46]
[1753216183167,6.11847177,200.44,200.39,26.0]
[1753216183168,0.14216157,200.42,200.37,0.03]
[1753216183367,5.2363102,200.4,200.38,21.46]
[1753216183567,5.9163102,200.39,200.38,21.46]
[1753216183774,0.68,200.39,200.38,21.46]
[1753216191092,22.84315574,200.39,200.38,21.46]
[1753216191676,27.83342471,200.39,200.38,21.46]
[1753216192193,22.84315574,200.39,200.38,21.46]
[1753216192787,17.60684554,200.39,200.38,21.46]
[1753216192994,22.84315574,200.39,200.38,21.46]
[1753216193196,27.83342471,200.39,200.38,21.46]
[1753216193399,27.83342471,200.39,200.38,21.49]
[1753216194080,27.83342471,200.39,200.38,0.03]
[1753216194603,17.60684554,200.39,200.38,0.03]
[1753216194823,22.84315574,200.39,200.38,0.03]
[1753216197084,27.83342471,200.39,200.38,0.03]
[1753216199004,16.92684554,200.39,200.38,0.03]
[1753216199184,16.92684554,200.39,200.38,21.49]
[1753216200592,17.61684554,200.39,200.38,21.49]
[1753216200795,22.85315574,200.39,200.38,21.49]
[1753216201009,27.84342471,200.39,200.38,21.49]
[1753216201220,27.84342471,200.39,200.38,0.03]
[1753216202081,17.61684554,200.39,200.38,0.03]
[1753216202282,22.16315574,200.39,200.38,0.03]
[1753216202508,0.14216157,200.39,200.38,0.03]
[1753216202720,11.05874074,200.39,200.38,0.03]
[1753216203584,6.06847177,200.39,200.38,0.03]
[1753216204006,0.14216157,200.39,200.38,0.03]
[1753216207340,0.75,200.44,200.38,0.74]
[1753216207498,0.75,200.44,200.38,10.96659249]
[1753216207499,5.2963102,200.44,200.38,10.96659249]
[1753216207705,0.14216157,200.43,200.39,0.71]
[1753216207903,0.83216157,200.43,200.4,21.44]
[1753216208106,5.2363102,200.42,200.4,21.44]
[1753216208420,6.06847177,200.41,200.4,21.44]
[1753216209508,0.14216157,200.41,200.4,21.44]
[1753216210430,22.71099417,200.43,200.4,21.44]
[1753216210431,0.14216157,200.42,200.4,21.44]
[1753216211194,0.06,200.44,200.41,0.71]
[1753216211414,0.06,200.44,200.43,5.2363102]
[1753216211616,0.06,200.44,200.43,0.71]
[1753216211830,0.06,200.44,200.4,32.37632663]
[1753216212135,0.20216157,200.44,200.4,22.15]
[1753216212494,0.89216157,200.44,200.4,22.15]
[1753216212823,0.20216157,200.44,200.4,27.14001055]
[1753216213805,0.20216157,200.44,200.41,0.71]
[1753216214019,0.20216157,200.44,200.42,0.71]
[1753216214532,0.06,200.44,200.43,0.71]
[1753216215030,0.06,200.44,200.41,5.9463102]
[1753216215204,0.06,200.44,200.42,0.71]
[1753216215628,0.06,200.44,200.42,4.9895026]
[1753216215831,0.06,200.44,200.43,0.71]
[1753216216447,0.06,200.44,200.43,5.9463102]
[1753216217523,0.06,200.44,200.43,32.37558326]
[1753216219914,0.06,200.44,200.43,61.27558326]
[1753216220342,0.06,200.44,200.43,56.03927306]
[1753216220644,0.06,200.44,200.43,61.27558326]
[1753216222830,0.06,200.44,200.43,50.34]
[1753216223138,0.06,200.44,200.43,32.87451056]
[1753216223331,0.06,200.44,200.43,61.77451056]
[1753216223529,0.06,200.46,200.45,39.3487102]
[1753216223732,0.06,200.46,200.45,90.16758772]
[1753216224057,0.06,200.46,200.45,90.87758772]
[1753216224420,0.06,200.46,200.45,95.86636297]
[1753216224623,0.06,200.46,200.45,69.21005277]
[1753216224825,0.06,200.46,200.45,95.86636297]
[1753216225727,0.1,200.5,200.45,108.3383011]
[1753216225928,0.1,200.5,200.49,5.2363102]
[1753216226230,0.1,200.5,200.49,27.15508819]
[1753216226448,0.1,200.5,200.49,32.85286812]
[1753216228734,0.1,200.5,200.49,61.75286812]
[1753216231644,0.1,200.5,200.49,61.04286812]
[1753216233246,0.1,200.5,200.49,61.75286812]
[1753216235922,0.1,200.5,200.49,29.39877799]
[1753216236128,5.9863102,200.5,200.49,28.9]
[1753216236323,0.1,200.5,200.49,50.3]
[1753216236858,0.75,200.5,200.49,50.3]
[1753216237228,0.1,200.5,200.49,50.3]
[1753216240629,0.1,200.5,200.49,21.4]
[1753216242130,0.1,200.5,200.49,26.6363102]
[1753216242354,0.1,200.5,200.49,31.62409013]
[1753216242556,0.1,200.5,200.49,32.83286812]
[1753216243657,0.1,200.5,200.49,61.73286812]
[1753216250366,0.1,200.5,200.49,56.49655792]
[1753216250570,0.1,200.5,200.49,61.02286812]
[1753216250750,0.1,200.5,200.49,56.03508819]
[1753216250949,0.82,200.5,200.49,50.28]
[1753216251455,0.14216157,200.49,200.44,28.9]
[1753216251658,0.14216157,200.47,200.45,21.38]
[1753216251868,0.72,200.46,200.45,21.38]
[1753216253469,0.14216157,200.47,200.45,21.38]
[1753216253764,0.86216157,200.47,200.45,21.38]
[1753216254447,0.72,200.46,200.45,21.38]
[1753216254767,0.86216157,200.46,200.45,21.38]
[1753216259971,0.86216157,200.46,200.45,21.41]
[1753216260952,0.1,200.5,200.45,58.35508545]
[1753216261155,0.1,200.5,200.49,5.2363102]
[1753216261459,0.1,200.5,200.49,27.11508819]
[1753216261660,0.1,200.5,200.49,22.59877799]
[1753216261866,0.1,200.5,200.49,47.38]
[1753216262883,0.1,200.5,200.49,21.38]
[1753216263089,0.1,200.5,200.49,31.60409013]
[1753216263549,0.1,200.5,200.49,32.32409013]
[1753216272480,0.1,200.5,200.49,87.22409013]
[1753216272785,0.1,200.5,200.49,87.72286812]
[1753216273358,0.1,200.5,200.49,61.72286812]
[1753216276163,0.1,200.5,200.49,61.22409013]
[1753216276469,0.1,200.5,200.49,60.50409013]
[1753216276783,0.1,200.5,200.49,61.22409013]
[1753216277600,0.1,200.51,200.49,69.46936812]
[1753216277764,0.1,200.51,200.5,37.1826204]
[1753216278575,0.1,200.51,200.5,31.9463102]
[1753216278957,0.1,200.51,200.5,31.69753117]
[1753216279367,0.1,200.51,200.5,36.93384137]
[1753216280769,0.1,200.51,200.5,36.22384137]
[1753216281367,0.1,200.51,200.5,16.66890468]
[1753216281589,0.06,200.53,200.52,31.2363102]
[1753216281800,0.06,200.53,200.52,53.07501357]
[1753216281979,0.06,200.53,200.52,82.68501357]
[1753216283303,0.06,200.53,200.52,87.67204728]
[1753216286593,0.78,200.53,200.52,28.9]
[1753216286793,0.78,200.53,200.52,50.24]
[1753216288003,0.78,200.53,200.52,21.34]
[1753216288594,0.78,200.53,200.52,47.34]
[1753216288795,0.06,200.53,200.52,52.32703371]
[1753216289704,0.06,200.53,200.52,57.56334391]
[1753216289918,0.06,200.53,200.52,47.34]
[1753216290275,0.06,200.53,200.52,57.56334391]
[1753216290704,0.06,200.53,200.52,52.32703371]
[1753216291003,0.06,200.53,200.52,47.34]
[1753216291231,0.78,200.53,200.52,47.34]
[1753216292798,0.06,200.53,200.52,52.32703371]
[1753216294009,0.06,200.53,200.52,47.34]
[1753216296626,0.06,200.53,200.52,52.32703371]
[1753216297731,0.06,200.53,200.52,53.03703371]
[1753216299328,0.06,200.53,200.52,47.34]
[1753216300428,0.06,200.53,200.52,58.27334391]
[1753216301200,0.06,200.53,200.52,57.56334391]
[1753216302312,0.06,200.53,200.52,58.27334391]
[1753216303107,0.06,200.53,200.52,47.34]
[1753216303508,0.06,200.53,200.52,21.34]
[1753216305618,0.78,200.53,200.52,21.34]
[1753216305923,22.94315574,200.53,200.52,21.34]
[1753216306109,16.78468397,200.52,200.51,0.03]
[1753216306309,22.74099417,200.52,200.51,21.35]
[1753216307121,0.14216157,200.52,200.51,21.35]
[1753216309123,0.86216157,200.52,200.51,21.35]
[1753216309445,16.92684554,200.51,200.46,0.03]
[1753216309744,10.22458774,200.47,200.46,0.03]
[1753216309906,5.13043911,200.47,200.46,0.03]
[1753216310228,11.08674931,200.47,200.46,0.03]
[1753216310806,6.09847177,200.47,200.46,0.03]
[1753216311514,5.85043911,200.47,200.46,0.03]
[1753216311706,6.09847177,200.47,200.46,0.03]
[1753216311918,5.9563102,200.49,200.46,21.89]
[1753216312223,0.14216157,200.48,200.46,21.89]
[1753216313299,5.9563102,200.49,200.46,21.89]
[1753216313507,0.06,200.53,200.47,5.9263102]
[1753216313718,6.0163102,200.53,200.47,5.2363102]
[1753216314038,6.0163102,200.53,200.46,22.58]
[1753216314039,22.16315574,200.48,200.46,0.03]
[1753216314224,22.16315574,200.47,200.46,0.03]
[1753216314431,16.92684554,200.46,200.45,0.03]
[1753216314612,22.88315574,200.46,200.45,0.03]
[1753216315010,22.88315574,200.46,200.42,0.03]
[1753216315226,22.16315574,200.46,200.42,0.03]
[1753216315420,16.92684554,200.44,200.42,0.03]
[1753216315625,5.37847177,200.43,200.42,0.03]
[1753216315841,6.09847177,200.43,200.42,0.03]
[1753216316206,22.88315574,200.43,200.42,0.03]
[1753216317233,27.8724288,200.43,200.42,0.03]
[1753216319811,22.88315574,200.43,200.42,0.03]
[1753216320248,0.72,200.46,200.42,0.03]
[1753216320407,16.78468397,200.47,200.42,0.72]
[1753216320614,22.02099417,200.47,200.43,0.69]
[1753216320807,0.14216157,200.46,200.43,0.69]
[1753216321116,22.02099417,200.47,200.43,0.69]
[1753216321323,5.2363102,200.5,200.44,5.9263102]
[1753216321530,11.00311867,200.53,200.47,5.2363102]
[1753216321733,11.00311867,200.53,200.47,5.9263102]
[1753216321935,16.78468397,200.52,200.47,5.9263102]
[1753216322137,16.78468397,200.52,200.48,0.69]
[1753216322316,0.14216157,200.51,200.48,0.69]
[1753216323044,10.36579004,200.51,200.46,0.69]
[1753216323250,5.37847177,200.49,200.45,21.8]
[1753216323548,0.14216157,200.49,200.45,22.49]
[1753216324043,5.2363102,200.51,200.46,5.9263102]
[1753216324349,0.14216157,200.45,200.43,21.78]
[1753216326309,5.37847177,200.45,200.43,21.78]
[1753216328649,5.2363102,200.44,200.43,21.78]
[1753216328943,5.37847177,200.45,200.43,21.78]
[1753216330444,0.14216157,200.45,200.43,21.78]
[1753216331020,22.16315574,200.44,200.43,21.78]
[1753216332143,16.92684554,200.44,200.43,21.78]
[1753216332451,21.91586968,200.44,200.43,21.78]
[1753216333039,22.16315574,200.44,200.43,21.78]
[1753216333638,27.87217988,200.44,200.43,21.78]
[1753216333941,27.87217988,200.44,200.42,0.03]
[1753216333942,0.14216157,200.43,200.42,0.03]
[1753216334137,27.1524288,200.43,200.42,0.03]
[1753216334340,16.92684554,200.43,200.42,0.03]
[1753216334736,27.8724288,200.43,200.42,0.03]
[1753216337741,22.88315574,200.43,200.42,0.03]
[1753216337943,16.78468397,200.43,200.42,0.03]
[1753216338244,16.92684554,200.43,200.42,0.03]
[1753216338445,16.78468397,200.43,200.42,0.03]
[1753216338751,27.8524288,200.43,200.42,0.03]
[1753216343436,22.16315574,200.43,200.42,0.03]
[1753216343643,16.78468397,200.43,200.42,0.03]
[1753216343837,5.2363102,200.46,200.42,0.73]
[1753216344038,5.2363102,200.5,200.44,5.2363102]
[1753216344250,10.22359262,200.51,200.45,0.7]
[1753216344445,16.92684554,200.49,200.45,0.7]
[1753216344749,16.92684554,200.49,200.46,0.7]
[1753216344973,5.2963102,200.52,200.46,0.7]
[1753216345149,16.78468397,200.51,200.46,5.9363102]
[1753216345352,0.06,200.52,200.47,5.9363102]
[1753216345655,0.06,200.52,200.48,0.7]
[1753216345852,0.06,200.52,200.49,0.7]
[1753216346053,5.2963102,200.52,200.49,0.7]
[1753216346755,0.20216157,200.52,200.49,0.7]
[1753216347161,5.43847177,200.52,200.49,0.7]
[1753216347357,5.43847177,200.52,200.47,40.79827177]
[1753216347538,0.20216157,200.52,200.5,0.7]
[1753216347740,0.20216157,200.52,200.51,0.7]
[1753216348165,0.20216157,200.52,200.49,0.7]
[1753216348545,0.20216157,200.52,200.5,0.7]
[1753216348761,0.20216157,200.52,200.47,46.03458197]
[1753216348762,0.20216157,200.52,200.51,0.7]
[1753216349136,0.20216157,200.52,200.49,0.7]
[1753216349360,0.20216157,200.52,200.48,5.2363102]
[1753216349553,0.20216157,200.52,200.5,0.7]
[1753216351049,10.42556758,200.52,200.48,0.7]
[1753216351363,0.14216157,200.48,200.47,14.17]
[1753216351576,5.37847177,200.48,200.45,28.93]
[1753216351746,27.15168212,200.46,200.45,0.03]
[1753216353051,22.16315574,200.46,200.45,0.03]
[1753216362077,16.92684554,200.46,200.45,0.03]
[1753216362377,16.78468397,200.5,200.45,5.9663102]
[1753216362581,0.14216157,200.49,200.46,0.7]
[1753216362875,16.84468397,200.51,200.46,5.9363102]
[1753216363076,0.14216157,200.5,200.47,0.7]
[1753216363257,0.14216157,200.5,200.45,26.7663102]
[1753216363258,0.14216157,200.5,200.48,0.7]
[1753216365377,0.14216157,200.5,200.45,31.7550759]
[1753216365553,0.20216157,200.51,200.49,0.7]
[1753216365869,5.18954806,200.51,200.49,0.7]
[1753216367044,0.20216157,200.51,200.5,0.7]
[1753216367347,0.06,200.51,200.5,0.7]
[1753216367749,0.06,200.51,200.48,5.2363102]
[1753216367750,0.06,200.51,200.47,5.2363102]